bitfinex-derivatives/quotes_ETHF0:USTF0_20250726
["timestamp","ask_amount","ask_price","bid_price","bid_amount"]
[1753573000363,0.2,3743.9,3743.8,6.36415]
[1753573002064,2.55,3743.9,3743.8,6.36415]
[1753573003075,2.55,3743.9,3743.8,5.8301]
[1753573003267,2.55,3743.9,3743.8,6.36415]
[1753573006475,2.55,3743.9,3743.8,3.15635]
[1753573007178,2.55,3743.9,3743.8,0.53405]
[1753573007179,1.2627,3743.9,3743.8,0.53405]
[1753573007476,1.5483,3743.8,3743.6,3.6514]
[1753573007677,2.35,3743.7,3743.6,5.8301]
[1753573007969,2.35,3743.7,3743.6,3.15638]
[1753573009875,2.35,3743.7,3743.6,6.36418]
[1753573011178,1.356,3743.7,3743.6,6.36418]
[1753573011578,2.0317,3743.7,3743.6,6.36418]
[1753573014682,2.35,3743.7,3743.6,6.36418]
[1753573015080,2.35,3743.7,3743.6,3.855]
[1753573015285,2.35,3743.7,3743.6,0.3224]
[1753573015484,2.35,3743.7,3743.6,0.85648]
[1753573016282,2.88407,3743.7,3743.6,0.3224]
[1753573016582,2.35,3743.6,3743.5,0.53409]
[1753573016779,2.35,3743.6,3743.3,0.4742]
[1753573016780,1.6743,3743.5,3743.4,0.5341]
[1753573016985,2.35,3743.5,3743.4,2.5225]
[1753573017288,2.35,3743.5,3743.4,3.1564]
[1753573018781,2.35,3743.5,3743.4,2.5225]
[1753573018987,2.35,3743.5,3743.4,1.6249]
[1753573019287,2.35,3743.5,3743.4,2.0848]
[1753573019488,2.35,3743.5,3743.4,2.7133]
[1753573020085,2.8841,3743.5,3743.4,2.7133]
[1753573020285,2.82514,3743.2,3743.1,1.4582]
[1753573020492,2.291,3743.2,3743.1,0.83975]
[1753573020691,2.82514,3743.2,3743.1,0.3056]
[1753573020888,2.82514,3743.2,3743.1,0.7556]
[1753573021190,2.291,3743.2,3743.1,3.08075]
[1753573022090,2.291,3743.2,3743.1,2.5466]
[1753573022685,2.82514,3743.2,3743.1,2.5466]
[1753573023183,2.41437,3743.0,3742.9,0.6138]
[1753573023387,1.57942,3742.6,3742.5,1.2423]
[1753573023587,2.82522,3742.6,3742.5,2.1522]
[1753573024087,2.82522,3742.6,3742.5,2.5466]
[1753573025185,1.57946,3742.4,3742.3,0.6138]
[1753573025382,1.0452,3742.4,3742.3,2.5466]
[1753573025587,1.57945,3742.4,3742.3,2.5466]
[1753573025985,2.82525,3742.4,3742.3,2.5466]
[1753573026190,2.291,3742.4,3742.3,3.08087]
[1753573026389,2.291,3742.4,3742.3,2.5466]
[1753573026585,2.82525,3742.4,3742.3,2.5466]
[1753573027592,2.291,3742.4,3742.3,3.08087]
[1753573027793,2.82525,3742.4,3742.3,5.7544]
[1753573029989,2.82525,3742.4,3742.3,3.5134]
[1753573030196,2.82529,3742.1,3742.0,2.5466]
[1753573030590,2.82529,3742.1,3742.0,1.5237]
[1753573030892,2.82529,3742.1,3742.0,3.08091]
[1753573031193,2.82529,3742.1,3742.0,2.5466]
[1753573039100,2.291,3742.1,3742.0,3.08091]
[1753573039493,2.82529,3742.1,3742.0,2.5466]
[1753573040094,2.82529,3742.1,3742.0,1.4582]
[1753573040300,2.82529,3742.1,3742.0,1.0638]
[1753573040495,2.82529,3742.1,3742.0,1.5237]
[1753573041195,2.82529,3742.1,3742.0,2.1522]
[1753573041394,2.82529,3742.1,3742.0,2.5466]
[1753573041594,2.82529,3742.1,3742.0,3.08091]
[1753573041901,2.82529,3742.1,3742.0,2.5466]
[1753573045206,2.82529,3742.1,3742.0,3.08091]
[1753573045407,2.82529,3742.1,3742.0,2.5466]
[1753573047108,2.82529,3742.1,3742.0,3.08091]
[1753573048803,2.82529,3742.1,3742.0,2.5466]
[1753573049204,2.82529,3742.1,3742.0,3.08091]
[1753573049415,2.82529,3742.1,3742.0,2.5466]
[1753573053813,2.82529,3742.1,3742.0,3.08091]
[1753573054217,2.82529,3742.1,3742.0,2.5466]
[1753573055318,2.82529,3742.1,3742.0,3.08091]
[1753573057518,2.82529,3742.1,3742.0,2.5466]
[1753573057717,2.82529,3742.1,3742.0,3.08091]
[1753573059221,2.82529,3742.1,3742.0,2.5466]
[1753573059422,1.2711,3742.4,3742.0,3.08091]
[1753573059615,0.53429,3742.1,3742.0,2.5466]
[1753573060015,2.01969,3742.1,3742.0,3.08091]
[1753573060220,2.48589,3742.1,3742.0,3.08091]
[1753573060620,2.48589,3742.1,3742.0,2.5466]
[1753573061221,1.9516,3742.1,3742.0,2.5466]
[1753573061520,2.48589,3742.1,3742.0,2.5466]
[1753573062016,2.76929,3742.1,3742.0,2.5466]
[1753573062216,2.76929,3742.1,3742.0,3.08091]
[1753573062516,2.235,3742.1,3742.0,3.08091]
[1753573063022,2.76929,3742.1,3742.0,3.08091]
[1753573063222,2.235,3742.1,3742.0,3.08091]
[1753573063824,2.76929,3742.1,3742.0,3.08091]
[1753573064222,2.235,3742.1,3742.0,3.08091]
[1753573065428,2.76929,3742.1,3742.0,3.08091]
[1753573066229,2.235,3742.1,3742.0,3.08091]
[1753573066723,24.6198,3742.8,3742.6,3.13852]
[1753573066923,0.6278,3743.0,3742.9,3.13848]
[1753573067924,1.9516,3743.0,3742.9,3.13848]
[1753573068126,2.235,3743.0,3742.9,3.13848]
[1753573068725,2.76917,3743.0,3742.9,2.6043]
[1753573068925,2.76917,3743.0,3742.9,1.9821]
[1753573069124,0.9639,3742.4,3742.3,1.255]
[1753573069326,2.235,3742.4,3742.3,2.72277]
[1753573069525,2.235,3742.4,3742.3,3.13857]
[1753573070727,1.9516,3742.4,3742.3,3.13857]
[1753573071732,1.9516,3742.4,3742.3,6.34637]
[1753573076635,2.235,3742.4,3742.3,6.34637]
[1753573077335,2.235,3742.4,3742.3,3.13857]
[1753573078130,2.76925,3742.4,3742.3,0.3096]
[1753573078330,2.235,3742.4,3742.3,2.5414]
[1753573078639,2.235,3742.4,3742.3,3.07567]
[1753573079436,2.76925,3742.4,3742.3,3.07567]
[1753573080641,2.235,3742.4,3742.3,3.07567]
[1753573085435,2.76925,3742.4,3742.3,3.07567]
[1753573085743,2.76925,3742.4,3742.3,2.5414]
[1753573087038,21.377,3742.8,3741.9,3.2078]
[1753573087039,2.69288,3742.2,3742.1,0.7555]
[1753573087642,2.69288,3742.2,3742.1,1.0452]
[1753573087942,2.69288,3742.2,3742.1,2.1253]
[1753573088138,2.69288,3742.2,3742.1,0.7555]
[1753573088346,2.69291,3742.0,3741.9,5.3331]
[1753573088744,2.69291,3742.0,3741.9,5.86742]
[1753573089043,2.69291,3742.0,3741.9,6.26372]
[1753573089943,2.1586,3742.0,3741.9,6.26372]
[1753573090138,1.893,3742.0,3741.9,6.26372]
[1753573090646,1.81537,3742.3,3742.2,2.5216]
[1753573091038,2.42727,3742.3,3742.2,2.5216]
[1753573091444,2.69287,3742.3,3742.2,2.5216]
[1753573092042,2.69287,3742.3,3742.2,3.05588]
[1753573093144,2.69287,3742.3,3742.2,2.5216]
[1753573095449,2.69287,3742.3,3742.2,3.05588]
[1753573096148,2.69287,3742.3,3742.2,2.5216]
[1753573100448,2.69291,3742.0,3741.9,2.5216]
[1753573101246,2.1586,3742.0,3741.9,2.5216]
[1753573101639,2.69291,3742.0,3741.9,2.5216]
[1753573106054,2.69291,3742.0,3741.9,3.05592]
[1753573106556,0.5343,3742.1,3742.0,0.82411]
[1753573106756,0.5343,3742.1,3742.0,3.05591]
[1753573106950,1.1006,3742.1,3742.0,3.05591]
[1753573107757,1.8154,3742.1,3742.0,3.05591]
[1753573108054,2.2569,3742.1,3742.0,2.5216]
[1753573108354,2.4228,3742.1,3742.0,2.5216]
[1753573108856,2.4228,3742.1,3742.0,3.05591]
[1753573109256,1.8885,3742.1,3742.0,3.05591]
[1753573109456,2.42279,3742.1,3742.0,3.05591]
[1753573111359,2.1622569,3742.1,3742.0,3.05591]
[1753573112362,1.6279669,3742.1,3742.0,3.05591]
[1753573112962,2.1622569,3742.1,3742.0,3.05591]
[1753573113263,2.4277569,3742.1,3742.0,3.05591]
[1753573113464,2.4277569,3742.1,3742.0,2.5216]
[1753573115065,2.4277569,3742.1,3742.0,3.05591]
[1753573116365,2.2540618,3742.1,3742.0,3.05591]
[1753573117872,1.7197718,3742.1,3742.0,3.05591]
[1753573118168,1.4542718,3742.1,3742.0,3.05591]
[1753573118669,1.9885618,3742.1,3742.0,3.05591]
[1753573119269,1.4542718,3742.1,3742.0,3.05591]
[1753573121269,1.1937302,3742.1,3742.0,3.05591]
[1753573122073,22.9138,3742.6,3742.5,1.50004]
[1753573122265,23.44802,3742.6,3742.5,3.01524]
[1753573122466,22.6483,3742.6,3742.5,3.01524]
[1753573123361,23.2249,3742.6,3742.5,3.01524]
[1753573124371,23.75912,3742.6,3742.5,3.01524]
[1753573126773,23.75912,3742.6,3742.5,2.481]
[1753573127274,23.75912,3742.6,3742.5,3.01524]
[1753573127674,24.02462,3742.6,3742.5,3.01524]
[1753573128179,24.02462,3742.6,3742.5,2.481]
[1753573128575,2.1194,3742.4,3742.3,0.4425]
[1753573128773,2.1194,3742.4,3741.9,3.2078]
[1753573128774,22.70657,3742.6,3742.1,1.0727]
[1753573128969,2.65369,3742.1,3742.0,1.579]
[1753573129175,24.01369,3742.1,3742.0,1.579]
[1753573129374,23.4794,3742.1,3742.0,3.0153]
[1753573131181,2.38815,3742.4,3742.3,3.01527]
[1753573131480,23.04511812,3742.4,3742.3,2.481]
[1753573131969,0.03766812,3742.4,3742.3,3.01527]
[1753573132275,21.358,3742.4,3742.3,3.01527]
[1753573134283,3.2078,3742.8,3742.7,1.50001]
[1753573134483,24.5658,3742.8,3742.7,3.01521]
[1753573134783,24.7317,3742.8,3742.7,3.01521]
[1753573135082,25.3083,3742.8,3742.7,3.01521]
[1753573138080,24.5658,3742.8,3742.7,3.01521]
[1753573139283,24.7311,3742.8,3742.7,3.01521]
[1753573139482,25.2969,3742.8,3742.7,3.01521]
[1753573140186,25.7032,3742.8,3742.7,3.01521]
[1753573140483,26.0073,3742.8,3742.7,3.01521]
[1753573140987,22.7995,3742.8,3742.7,3.01521]
[1753573142182,23.064,3742.8,3742.7,3.01521]
[1753573143191,23.59819,3742.8,3742.7,3.01521]
[1753573143687,23.064,3742.8,3742.7,3.01521]
[1753573145678,23.064,3742.8,3742.7,6.22301]
[1753573146084,0.1653,3743.5,3743.4,0.9666]
[1753573146282,0.9749,3743.8,3743.7,0.53406]
[1753573146481,0.9749,3743.8,3743.7,2.98976]
[1753573146482,22.3249,3743.8,3743.7,2.98976]
[1753573146683,21.7563,3743.8,3743.7,2.98976]
[1753573147287,21.9216,3743.8,3743.7,2.98976]
[1753573147486,22.7915,3743.8,3743.7,2.98976]
[1753573148483,22.2257,3743.8,3743.7,2.98976]
[1753573148692,21.35,3743.8,3743.7,2.98976]
[1753573149588,22.0811,3743.8,3743.7,2.98976]
[1753573149788,21.35,3743.8,3743.7,2.98976]
[1753573151789,21.5153,3743.8,3743.7,2.98976]
[1753573152181,23.3388,3743.8,3743.7,0.4462]
[1753573152486,23.87285,3743.8,3743.7,0.4462]
[1753573152686,23.3388,3743.8,3743.7,0.4462]
[1753573153486,1.50898,3743.6,3743.5,0.4462]
[1753573153687,23.3338,3743.6,3743.5,0.4462]
[1753573154085,23.86788,3743.6,3743.5,1.0388]
[1753573154285,23.86788,3743.6,3743.5,1.7802]
[1753573155192,0.2645,3743.3,3743.2,1.3482]
[1753573155493,23.3328,3743.3,3743.2,2.61964]
[1753573155698,23.3328,3743.3,3743.2,2.98984]
[1753573156693,23.05,3743.3,3743.2,2.98984]
[1753573157093,21.344,3743.3,3743.2,2.98984]
[1753573157283,21.343,3743.8,3743.6,0.9666]
[1753573157489,21.343,3743.8,3743.7,2.98977]
[1753573159798,23.86585,3743.8,3743.7,0.4462]
[1753573159989,23.3318,3743.8,3743.7,0.4462]
[1753573160190,23.86585,3743.8,3743.7,0.4462]
[1753573160389,23.86585,3743.8,3743.7,1.7802]
[1753573160791,23.86585,3743.8,3743.7,1.3299]
[1753573160989,23.86585,3743.8,3743.7,0.4462]
[1753573162595,23.86585,3743.8,3743.7,1.3299]
[1753573162797,23.049,3743.8,3743.7,2.98977]
[1753573163090,23.049,3743.8,3743.7,2.4557]
[1753573163297,23.58305,3743.8,3743.7,2.4557]
[1753573163495,23.049,3743.8,3743.7,2.4557]
[1753573163692,23.049,3743.8,3743.7,2.98977]
[1753573163893,23.049,3743.8,3743.7,2.4557]
[1753573164097,23.58305,3743.8,3743.7,2.4557]
[1753573164993,1.5407,3743.5,3743.4,0.4462]
[1753573165197,23.86289,3743.5,3743.4,0.4462]
[1753573169204,2.45074,3743.2,3743.1,0.4104]
[1753573169395,1.46171,3742.7,3742.6,1.97902]
[1753573169700,22.9887,3742.7,3742.6,1.97902]
[1753573169905,22.9887,3742.7,3742.6,2.95672]
[1753573170998,22.9887,3742.7,3742.6,2.4225]
[1753573171799,22.9887,3742.7,3742.6,2.95672]
[1753573174397,21.339,3742.7,3742.6,2.95672]
[1753573174593,0.1665,3743.2,3742.6,2.4225]
[1753573174800,21.339,3743.1,3743.0,2.95667]
[1753573174997,1.6493,3743.5,3743.4,0.9906]
[1753573175201,23.52239,3743.5,3743.4,2.4225]
[1753573175502,21.339,3743.5,3743.4,6.16441]
[1753573176404,0.922,3743.9,3743.8,2.95655]
[1753573176605,22.261,3743.9,3743.8,2.95655]
[1753573177207,22.6289,3743.9,3743.8,2.4225]
[1753573177410,22.9218,3743.9,3743.8,2.4225]
[1753573177910,23.45584,3743.9,3743.8,2.4225]
[1753573178409,22.9218,3743.9,3743.8,2.95655]
[1753573178910,22.9218,3743.9,3743.8,2.4225]
[1753573179310,23.1883,3743.9,3743.8,2.4225]
[1753573179810,23.72234,3743.9,3743.8,2.4225]
[1753573180611,23.1883,3743.9,3743.8,2.95655]
[1753573182010,23.72234,3743.9,3743.8,2.95655]
[1753573182212,23.72234,3743.9,3743.8,2.4225]
[1753573182510,23.72234,3743.9,3743.8,2.95655]
[1753573183911,23.1883,3743.9,3743.8,2.95655]
[1753573185012,23.72234,3743.9,3743.8,2.95655]
[1753573185510,23.72234,3743.9,3743.8,2.4225]
[1753573187213,23.72234,3743.9,3743.8,2.95655]
[1753573188017,23.72234,3743.9,3743.4,3.2078]
[1753573188018,2.44718,3743.6,3743.5,0.4104]
[1753573188217,1.46139,3743.5,3743.4,3.2078]
[1753573188412,2.44719,3743.5,3743.4,3.2078]
[1753573188611,2.44719,3743.5,3743.4,3.6182]
[1753573189220,2.44719,3743.5,3743.4,4.1855]
[1753573189715,2.44719,3743.5,3743.4,3.6182]
[1753573191911,2.44719,3743.5,3743.4,4.9243]
[1753573192917,2.18339,3743.5,3743.4,5.6303]
[1753573196618,2.44719,3743.5,3743.4,5.6303]
[1753573198018,2.44719,3743.5,3743.4,2.4225]
[1753573202126,2.18339,3743.5,3743.4,2.4225]
[1753573202821,2.43469,3743.5,3743.4,0.4104]
[1753573203228,2.43469,3743.5,3743.2,0.4028]
[1753573203229,0.9733,3743.5,3743.2,0.4028]
[1753573203431,22.3273,3743.4,3743.3,0.4028]
[1753573203637,23.79691,3743.4,3743.3,0.4028]
[1753573205837,23.79691,3743.4,3743.3,0.9752]
[1753573206038,23.79691,3743.4,3743.3,2.3968]
[1753573207639,23.54561,3743.4,3743.3,2.3968]
[1753573209138,23.79691,3743.4,3743.3,2.3968]
[1753573212339,23.54561,3743.4,3743.3,2.3968]
[1753573213240,23.54561,3743.4,3743.3,2.0236]
[1753573213439,23.79691,3743.4,3743.3,2.0236]
[1753573217339,23.79691,3743.4,3743.3,2.3968]
[1753573217643,23.54561,3743.4,3743.3,2.3968]
[1753573219943,0.53411,3743.4,3743.3,2.3968]
[1753573220146,21.86111,3743.4,3743.3,2.3968]
[1753573222144,21.86111,3743.4,3743.3,2.6169205]
[1753573223635,21.86111,3743.4,3743.3,3.1510405]
[1753573223841,0.53408,3743.6,3743.4,1.0368]
[1753573224140,0.53407,3743.7,3743.6,2.93087]
[1753573224342,21.85907,3743.7,3743.6,3.1509905]
[1753573225151,21.85907,3743.7,3743.6,2.6169205]
[1753573225648,22.60437,3743.7,3743.6,2.6169205]
[1753573227250,22.60437,3743.7,3743.6,3.1510005]
[1753573229341,22.60437,3743.7,3743.6,2.6169205]
[1753573230353,22.60437,3743.7,3743.6,3.1510005]
[1753573231752,22.60437,3743.7,3743.6,2.6169205]
[1753573231953,23.49987,3743.7,3743.6,2.6169205]
[1753573233347,23.73587,3743.7,3743.6,1.4878205]
[1753573233553,23.73587,3743.7,3743.6,1.9429205]
[1753573233753,23.73587,3743.7,3743.6,2.2573205]
[1753573234455,23.73587,3743.7,3743.6,2.6087205]
[1753573237957,23.73587,3743.7,3743.6,2.3886]
[1753573238257,23.49987,3743.7,3743.6,2.60873828]
[1753573239260,21.325,3743.7,3743.6,3.14281828]
[1753573239447,0.53406,3743.8,3743.7,0.53407]
[1753573239653,0.2,3743.9,3743.8,2.90555]
[1753573239856,21.518,3743.9,3743.8,3.12568828]
[1753573243356,0.2,3743.9,3743.8,8.12568828]
[1753573243662,3.2078,3744.6,3744.5,2.90545]
[1753573243854,24.5238,3744.6,3744.5,3.12558828]
[1753573244250,21.316,3744.6,3744.5,3.12558828]
[1753573246858,21.316,3744.6,3744.5,3.12532352]
[1753573247259,0.1655,3744.9,3744.8,1.47421]
[1753573247464,22.0321,3744.9,3744.8,3.12528352]
[1753573247653,21.4775,3744.9,3744.8,3.12528352]
[1753573247856,22.0114,3744.9,3744.8,3.12528352]
[1753573248056,22.0114,3744.9,3744.8,2.59137352]
[1753573248462,21.4775,3744.9,3744.8,3.12528352]
[1753573248770,22.0114,3744.9,3744.8,3.12528352]
[1753573249159,22.0114,3744.9,3744.8,2.59137352]
[1753573249458,22.566,3744.9,3744.8,3.12528352]
[1753573249664,23.1966,3744.9,3744.8,2.59137352]
[1753573249865,23.1966,3744.9,3744.8,3.12528352]
[1753573250266,22.3936,3744.9,3744.8,3.12528352]
[1753573250466,22.3936,3744.9,3744.8,2.59137352]
[1753573250666,22.9275,3744.9,3744.8,2.59137352]
[1753573250866,23.1966,3744.9,3744.8,2.59137352]
[1753573252465,23.4615,3744.9,3744.8,2.59137352]
[1753573252868,23.4615,3744.9,3744.8,2.5923344]
[1753573253969,23.6909,3744.9,3744.8,1.7858344]
[1753573254265,23.6909,3744.9,3744.8,0.2208344]
[1753573254469,1.16457,3744.4,3744.3,0.4131]
[1753573254771,23.25557,3744.4,3744.3,0.4131]
[1753573256161,23.25557,3744.4,3744.3,0.9761]
[1753573256367,23.25557,3744.4,3744.3,1.4312]
[1753573256869,23.25557,3744.4,3744.3,1.7057]
[1753573257066,23.25557,3744.4,3744.3,2.0201]
[1753573258369,23.25557,3744.4,3744.3,2.3715]
[1753573259977,23.02617,3744.4,3744.3,2.3715]
[1753573264173,23.25167,3744.4,3744.3,1.002]
[1753573264371,23.25167,3744.4,3744.3,0.4131]
[1753573264772,23.02617,3744.4,3744.3,2.3327]
[1753573268272,21.84097,3744.4,3744.3,2.3327]
[1753573269578,22.78927,3744.4,3744.3,2.3327]
[1753573270078,23.06187,3744.4,3744.3,2.3327]
[1753573270470,21.302,3744.4,3744.3,0.9598]
[1753573270774,0.53394,3744.6,3744.5,0.9598]
[1753573270975,21.83494,3744.6,3744.5,0.9598]
[1753573271177,22.40144,3744.6,3744.5,2.345]
[1753573271581,23.05584,3744.6,3744.5,2.345]
[1753573278282,21.83494,3744.6,3744.5,2.345]
[1753573280985,21.83494,3744.6,3744.5,2.87895]
[1753573284182,22.40144,3744.6,3744.5,2.87895]
[1753573284386,21.8675,3744.6,3744.5,2.87895]
[1753573284587,21.301,3744.6,3744.5,2.87895]
[1753573285289,21.83494,3744.6,3744.5,2.87895]
[1753573285489,22.40144,3744.6,3744.5,2.87895]
[1753573286590,21.301,3744.6,3744.5,2.87895]
[1753573287888,21.83494,3744.6,3744.5,2.87895]
[1753573288390,21.301,3744.6,3744.5,2.87895]
[1753573289388,21.83494,3744.6,3744.5,2.87895]
[1753573289590,23.01404,3744.6,3744.5,2.345]
[1753573289792,23.22464,3744.6,3744.5,2.345]
[1753573289992,23.22464,3744.6,3744.5,2.87895]
[1753573290188,23.01404,3744.6,3744.5,2.87895]
[1753573290688,23.22464,3744.6,3744.5,0.4254]
[1753573291481,0.53398,3744.3,3744.2,1.024]
[1753573291791,23.21468,3744.3,3744.2,1.024]
[1753573291991,23.21468,3744.3,3744.2,1.5896]
[1753573292192,23.21468,3744.3,3744.2,2.3382]
[1753573292392,23.00408,3744.3,3744.2,2.3382]
[1753573293790,21.82498,3744.3,3744.2,2.3382]
[1753573293996,22.37348,3744.3,3744.2,2.3382]
[1753573294196,21.291,3744.3,3744.2,2.8722]
[1753573295296,4.37229,3745.0,3744.9,1.4413]
[1753573295497,26.21079,3745.0,3744.9,2.8721]
[1753573297295,26.21079,3745.0,3744.9,2.3382]
[1753573297804,26.21079,3745.0,3744.9,2.8721]
[1753573298902,26.21079,3745.0,3744.9,2.3382]
[1753573299201,25.6769,3745.0,3744.9,2.8721]
[1753573299698,26.21078,3745.0,3744.9,2.8721]
[1753573300300,21.29,3745.0,3744.9,2.8721]
[1753573300897,3.2078,3745.4,3745.3,2.87204]
[1753573301101,24.4948,3745.4,3745.3,2.87204]
[1753573301993,4.2357,3745.9,3745.8,0.9074]
[1753573302199,25.41519681,3745.9,3745.8,2.87197]
[1753573302400,22.20739681,3745.9,3745.8,2.87197]
[1753573302703,0.92139681,3745.9,3745.8,2.87197]
[1753573302896,0.2,3745.9,3745.8,2.87197]
[1753573303493,0.2,3745.9,3745.8,11.07977]
[1753573303697,1.63285,3746.7,3746.6,2.3382]
[1753573303996,24.42322877,3746.7,3746.6,0.4068]
[1753573304299,2.41628,3746.4,3746.3,0.4068]
[1753573304507,24.42025877,3746.4,3746.3,0.4068]
[1753573305107,1.66832,3746.1,3746.0,1.4308]
[1753573305311,23.69932,3746.1,3746.0,2.3382]
[1753573305507,23.48872,3746.1,3746.0,2.3382]
[1753573306014,24.20936455,3746.1,3746.0,2.3382]
[1753573306409,23.48872,3746.1,3746.0,2.3382]
[1753573307211,23.69202,3746.1,3746.0,2.3382]
[1753573307411,22.56472,3746.1,3746.0,2.3382]
[1753573307610,22.01622,3746.1,3746.0,2.3382]
[1753573308411,23.48872,3746.1,3746.0,2.3382]
[1753573308911,23.69202,3746.1,3746.0,0.4068]
[1753573309213,23.69202,3746.1,3746.0,0.9608]
[1753573309404,23.69202,3746.1,3746.0,1.6927]
[1753573310915,23.69202,3746.1,3746.0,1.9964]
[1753573311712,23.69202,3746.1,3746.0,2.3382]
[1753573313007,23.48872,3746.1,3746.0,2.3382]
[1753573317409,26.89452,3746.1,3746.0,0.4068]
[1753573318109,26.3608,3746.1,3745.7,0.9648]
[1753573318315,2.18572,3745.4,3745.3,5.4929]
[1753573318512,22.6363,3745.4,3745.3,5.4929]
[1753573318714,21.274,3745.4,3745.3,6.02674]
[1753573319110,21.80782,3745.4,3745.3,5.4929]
[1753573319608,21.80782,3745.4,3745.3,6.02674]
[1753573319812,21.80782,3745.4,3745.3,5.4929]
[1753573321717,23.45972,3745.4,3745.3,5.4929]
[1753573323416,23.45972,3745.4,3745.3,6.02674]
[1753573323921,22.9259,3745.4,3745.3,6.02674]
[1753573324120,21.274,3745.4,3745.3,6.02674]
[1753573324522,0.53381,3745.5,3745.4,1.45532]
[1753573324820,0.53381,3745.5,3745.4,2.81892]
[1753573325616,22.5639,3745.6,3745.5,2.81891]
[1753573325816,22.5639,3745.6,3745.5,2.2851]
[1753573326218,22.5639,3745.6,3745.5,2.81891]
[1753573326520,22.5639,3745.6,3745.5,2.2851]
[1753573327519,22.5639,3745.6,3745.5,2.81891]
[1753573327821,22.5639,3745.6,3745.5,2.2851]
[1753573328020,23.4577,3745.6,3745.5,2.81891]
[1753573328425,23.4577,3745.6,3745.5,2.2851]
[1753573330513,23.6557,3745.6,3745.5,2.2851]
[1753573332127,1.26885,3745.2,3745.1,0.5293]
[1753573332319,23.65375,3745.2,3745.1,1.3636]
[1753573332519,23.45575,3745.2,3745.1,2.2851]
[1753573334220,23.45575,3745.2,3745.1,2.81897]
[1753573334626,22.9219,3745.2,3745.1,2.81897]
[1753573335024,23.45575,3745.2,3745.1,2.81897]
[1753573335327,22.9219,3745.2,3745.1,2.81897]
[1753573335526,23.45575,3745.2,3745.1,2.81897]
[1753573335727,22.9219,3745.2,3745.1,2.81897]
[1753573336931,23.45575,3745.2,3745.1,2.81897]
[1753573337523,23.45575,3745.2,3745.1,2.2851]
[1753573338425,23.45575,3745.2,3745.1,1.7558]
[1753573339534,23.65375,3745.2,3745.1,0.3988]
[1753573346429,23.65375,3745.2,3745.1,0.9281]
[1753573346728,23.65375,3745.2,3745.1,1.6307]
[1753573349331,23.65375,3745.2,3745.1,0.3988]
[1753573352430,23.45575,3745.2,3745.1,2.2257]
[1753573365144,23.45575,3745.2,3745.1,2.75957]
[1753573365347,23.45575,3745.2,3745.1,2.2257]
[1753573368255,23.63935,3745.2,3745.1,0.3988]
[1753573370854,2.14645,3744.5,3744.4,5.4386]
[1753573371151,23.40445,3744.5,3744.4,2.2308]
[1753573373955,23.57575,3744.5,3744.4,0.4039]
[1753573375758,23.57575,3744.5,3744.4,0.902]
[1753573376654,23.57575,3744.5,3744.4,1.3381]
[1753573379256,23.57575,3744.5,3744.4,1.6002]
[1753573380953,23.57575,3744.5,3744.4,1.1021]
[1753573381351,23.57575,3744.5,3744.4,1.6352]
[1753573381857,23.57575,3744.5,3744.4,1.9336]
[1753573384758,23.57575,3744.5,3744.4,2.2827]
[1753573385153,26.78355,3744.5,3744.4,2.2827]
[1753573386260,26.61225,3744.5,3744.4,2.2827]
[1753573387058,26.78165,3744.5,3744.4,2.2827]
[1753573390363,26.78165,3744.5,3744.4,0.4039]
[1753573390558,26.78165,3744.5,3744.4,0.937]
[1753573391363,26.61225,3744.5,3744.4,2.3163]
[1753573397266,26.78165,3744.5,3744.4,2.3163]
[1753573397661,26.78165,3744.5,3744.4,0.4039]
[1753573398761,26.78165,3744.5,3744.4,0.937]
[1753573398961,26.78165,3744.5,3744.4,1.6688]
[1753573399161,26.78165,3744.5,3744.4,2.3163]
[1753573399561,26.61225,3744.5,3744.4,2.3163]
[1753573404872,26.78165,3744.5,3744.4,0.4039]
[1753573408582,26.78165,3744.5,3744.4,0.922]
[1753573409979,26.78165,3744.5,3744.4,1.3552]
[1753573410879,26.78165,3744.5,3744.4,1.6087]
[1753573412076,26.78165,3744.5,3744.4,0.4039]
[1753573412278,26.78165,3744.5,3744.4,2.2683]
[1753573412679,26.61225,3744.5,3744.4,2.2683]
[1753573417478,26.76775,3744.5,3744.4,2.2683]
[1753573418484,0.53404,3743.9,3743.8,1.11075749]
[1753573418682,24.00124,3743.9,3743.8,1.11075749]
[1753573418986,24.00124,3743.9,3743.1,3.36091168]
[1753573418987,2.09134,3743.2,3743.1,1.0928]
[1753573419178,22.38214,3743.2,3743.1,1.3463]
[1753573419579,22.03834,3743.2,3743.1,1.3463]
[1753573420080,21.77914,3743.2,3743.1,1.3463]
[1753573420478,21.77914,3743.2,3743.1,2.2421]
[1753573423482,22.41904,3743.2,3743.1,2.2421]
[1753573423688,23.37324,3743.2,3743.1,2.2421]
[1753573423883,23.04714,3743.2,3743.1,2.2421]
[1753573424090,27.20914,3743.2,3743.1,2.2421]
[1753573427783,0.53429,3742.2,3742.1,1.2908]
[1753573427989,21.77929,3742.2,3742.1,2.2421]
[1753573428188,21.77929,3742.2,3742.1,7.2421]
[1753573428384,21.245,3742.2,3742.1,7.77639]
[1753573430386,21.245,3742.2,3742.1,2.77639]
[1753573435284,4.62922,3743.3,3743.2,2.77624]
[1753573435485,3.467,3743.8,3743.7,1.44715]